[Event "Grandmaster Tournament Blitz"]
[Site "Biel/Bienne, Switzerland"]
[Date "2019.07.27"]
[Round "11.3"]
[White "Abdusattorov, Nodirbek"]
[Black "Bogner, Sebastian"]
[Result "1-0"]
[ECO "E71"]
[WhiteElo "2550"]
[BlackElo "2584"]
[PlyCount "81"]
[EventDate "2019.??.??"]
[EventType "blitz"]
[TimeControl "3+2"]
[WhiteClock "0:01:00"]
[BlackClock "0:00:05"]

1. d4 {[%emt 0:00:00]} Nf6 {[%emt 0:00:00]} 2. c4 {[%emt 0:00:00]} g6 {[%emt 0:
00:00]} 3. Nc3 {[%emt 0:00:00]} Bg7 {[%emt 0:00:00]} 4. e4 {[%emt 0:00:00]} O-O
{[%emt 0:00:00]} 5. h3 {[%emt 0:00:00]} d6 {[%emt 0:00:00]} 6. Bg5 {[%emt 0:00:
00]} Na6 {[%emt 0:00:00]} 7. Bd3 {[%emt 0:00:00]} e5 {[%emt 0:00:00]} 8. d5 {
[%emt 0:00:00]} c6 {[%emt 0:00:00]} 9. Nge2 {[%emt 0:00:00]} Nc5 {[%emt 0:00:
00]} 10. Bc2 {[%emt 0:00:00]} a5 {[%emt 0:00:00]} 11. O-O {[%emt 0:00:00]} Bd7
{[%emt 0:00:00]} 12. Qd2 {[%emt 0:00:00]} cxd5 {[%emt 0:00:00]} 13. exd5 {
[%emt 0:00:00]} Qc7 {[%emt 0:00:00]} 14. b3 {[%emt 0:00:00]} Nh5 {[%emt 0:00:
00]} 15. Bh6 {[%emt 0:00:00]} Qd8 {[%emt 0:00:00]} 16. Bxg7 {[%emt 0:00:00]}
Kxg7 {[%emt 0:00:00]} 17. a3 {[%emt 0:00:00]} b6 {[%emt 0:00:00]} 18. Rfe1 {
[%emt 0:00:00]} Rc8 {[%emt 0:00:00]} 19. Rab1 {[%emt 0:00:00]} a4 {[%emt 0:00:
00]} 20. bxa4 {[%emt 0:00:00]} Ra8 {[%emt 0:00:00]} 21. Nb5 {[%emt 0:00:00]}
Bxb5 {[%emt 0:00:00]} 22. Rxb5 {[%emt 0:00:00]} Nxa4 {[%emt 0:00:00]} 23. Qb4 {
[%emt 0:00:00]} Nc5 {[%emt 0:00:00]} 24. Rxb6 {[%emt 0:00:00]} Qc7 {[%emt 0:00:
00]} 25. a4 {[%emt 0:00:00]} Rfb8 {[%emt 0:00:07]} 26. a5 {[%emt 0:00:00]} Nf6
{[%emt 0:00:16]} 27. Nc3 {[%emt 0:00:00]} Nfd7 {[%emt 0:00:05]} 28. Rxb8 {
[%emt 0:00:00]} Rxb8 {[%emt 0:00:02]} 29. Nb5 {[%emt 0:00:00]} Qd8 {[%emt 0:00:
06]} 30. a6 {[%emt 0:00:00]} Qb6 {[%emt 0:00:06]} 31. Ra1 {[%emt 0:00:00]} Nxa6
{[%emt 0:00:09]} 32. Qxd6 {[%emt 0:00:00]} Qxd6 {[%emt 0:00:07]} 33. Nxd6 {
[%emt 0:00:00]} Nac5 {[%emt 0:00:01]} 34. Ra7 {[%emt 0:00:07]} Rb2 {[%emt 0:00:
01]} 35. Ba4 {[%emt 0:00:03]} Ra2 {[%emt 0:00:01]} 36. Rxd7 {[%emt 0:00:01]}
Rxa4 {[%emt 0:00:05]} 37. Rxf7+ {[%emt 0:00:02]} Kg8 {[%emt 0:00:07]} 38. Re7 {
[%emt 0:00:07]} Nd3 {[%emt 0:00:02]} 39. Ne4 {[%emt 0:00:06]} Rxc4 {[%emt 0:00:
01]} 40. d6 {[%emt 0:00:02]} Rc1+ {[%emt 0:00:07]} 41. Kh2 {[%emt 0:00:02]} 1-0

[Event "Grandmaster Tournament Blitz"]
[Site "Biel/Bienne, Switzerland"]
[Date "2019.07.27"]
[Round "11.4"]
[White "Georgiadis, Nico"]
[Black "Cori, Jorge"]
[Result "1-0"]
[ECO "B48"]
[WhiteElo "2464"]
[BlackElo "2558"]
[PlyCount "155"]
[EventDate "2019.??.??"]
[EventType "blitz"]
[TimeControl "3+2"]
[WhiteClock "0:00:16"]
[BlackClock "0:00:11"]

1. e4 {[%emt 0:00:00]} c5 {[%emt 0:00:00]} 2. Nf3 {[%emt 0:00:00]} e6 {[%emt 0:
00:00]} 3. d4 {[%emt 0:00:00]} cxd4 {[%emt 0:00:00]} 4. Nxd4 {[%emt 0:00:00]}
Nc6 {[%emt 0:00:00]} 5. Nc3 Qc7 6. Be3 {[%emt 0:00:00]} a6 {[%emt 0:00:00]} 7.
Qf3 {[%emt 0:00:00]} Nf6 {[%emt 0:00:00]} 8. O-O-O {[%emt 0:00:00]} d6 {
[%emt 0:00:00]} 9. Nxc6 {[%emt 0:00:00]} Qxc6 {[%emt 0:00:00]} 10. Be2 {
[%emt 0:00:00]} Nd7 {[%emt 0:00:00]} 11. Qg3 {[%emt 0:00:00]} b5 {[%emt 0:00:
00]} 12. a3 {[%emt 0:00:00]} Bb7 {[%emt 0:00:00]} 13. f4 {[%emt 0:00:00]} Rc8 {
[%emt 0:00:00]} 14. Kb1 {[%emt 0:00:00]} h5 {[%emt 0:00:00]} 15. h4 {[%emt 0:
00:00]} Qc7 {[%emt 0:00:00]} 16. Rhf1 {[%emt 0:00:00]} Bc6 {[%emt 0:00:00]} 17.
Rd2 {[%emt 0:00:00]} Qb7 {[%emt 0:00:00]} 18. f5 {[%emt 0:00:00]} e5 {[%emt 0:
00:00]} 19. Bg5 {[%emt 0:00:00]} Bxe4 {[%emt 0:00:00]} 20. Nxe4 {[%emt 0:00:00]
} Qxe4 {[%emt 0:00:00]} 21. f6 {[%emt 0:00:00]} gxf6 {[%emt 0:00:00]} 22. Bxf6
{[%emt 0:00:04]} Nxf6 {[%emt 0:00:00]} 23. Rxf6 {[%emt 0:00:01]} Be7 24. Rf1 {
[%emt 0:00:16]} Qg6 {[%emt 0:00:13]} 25. Qh3 {[%emt 0:00:04]} Rc7 {[%emt 0:00:
07]} 26. Rf5 {[%emt 0:00:12]} e4 {[%emt 0:00:15]} 27. Rd4 {[%emt 0:00:09]} Qe6
{[%emt 0:00:05]} 28. g3 {[%emt 0:00:09]} Bf6 {[%emt 0:00:06]} 29. Rdd5 {
[%emt 0:00:04]} Ke7 {[%emt 0:00:02]} 30. Qf1 {[%emt 0:00:01]} Be5 {[%emt 0:00:
03]} 31. Bxh5 {[%emt 0:00:02]} Qxd5 {[%emt 0:00:02]} 32. Rxf7+ {[%emt 0:00:02]}
Qxf7 {[%emt 0:00:12]} 33. Qxf7+ {[%emt 0:00:01]} Kd8 {[%emt 0:00:00]} 34. Qf5 {
[%emt 0:00:03]} e3 {[%emt 0:00:01]} 35. Bg4 {[%emt 0:00:04]} Re8 {[%emt 0:00:
03]} 36. Qg5+ {[%emt 0:00:02]} Rce7 {[%emt 0:00:03]} 37. Qxe3 {[%emt 0:00:03]}
Rc7 {[%emt 0:00:02]} 38. Qb6 {[%emt 0:00:02]} d5 {[%emt 0:00:03]} 39. Qxa6 {
[%emt 0:00:03]} Ke7 {[%emt 0:00:04]} 40. Qxb5 {[%emt 0:00:02]} Rd8 {[%emt 0:00:
02]} 41. h5 {[%emt 0:00:01]} Kf6 {[%emt 0:00:01]} 42. h6 {[%emt 0:00:02]} Kg5 {
[%emt 0:00:02]} 43. Be2 {[%emt 0:00:02]} Kxh6 {[%emt 0:00:02]} 44. Qd3 {
[%emt 0:00:02]} Kg7 {[%emt 0:00:01]} 45. Qf5 {[%emt 0:00:01]} Bf6 {[%emt 0:00:
02]} 46. Bd3 {[%emt 0:00:02]} Rc6 {[%emt 0:00:05]} 47. Qg6+ {[%emt 0:00:02]}
Kf8 48. Qh7 {[%emt 0:00:02]} Rb6 {[%emt 0:00:02]} 49. c3 {[%emt 0:00:03]} Bxc3
{[%emt 0:00:03]} 50. b4 {[%emt 0:00:02]} Bg7 {[%emt 0:00:01]} 51. Qf5+ {
[%emt 0:00:02]} Rf6 {[%emt 0:00:01]} 52. Qh3 {[%emt 0:00:02]} Rf3 {[%emt 0:00:
01]} 53. Bg6 {[%emt 0:00:03]} Ke7 {[%emt 0:00:04]} 54. Qh5 {[%emt 0:00:02]}
Rf1+ {[%emt 0:00:02]} 55. Ka2 {[%emt 0:00:02]} Rf2+ {[%emt 0:00:02]} 56. Kb1 {
[%emt 0:00:02]} Rdf8 {[%emt 0:00:02]} 57. Qg5+ {[%emt 0:00:02]} Kd6 {[%emt 0:
00:01]} 58. Bd3 {[%emt 0:00:01]} Bf6 {[%emt 0:00:05]} 59. Qe3 {[%emt 0:00:02]}
Rb2+ {[%emt 0:00:03]} 60. Kc1 {[%emt 0:00:02]} Rc8+ {[%emt 0:00:01]} 61. Kd1 {
[%emt 0:00:01]} Rc3 {[%emt 0:00:03]} 62. Qf4+ {[%emt 0:00:01]} Ke7 {[%emt 0:00:
01]} 63. Qe3+ {[%emt 0:00:02]} Kf7 {[%emt 0:00:01]} 64. Qf3 {[%emt 0:00:02]}
Ke7 {[%emt 0:00:02]} 65. Qe3+ {[%emt 0:00:01]} Kd6 {[%emt 0:00:02]} 66. Qf4+ {
[%emt 0:00:01]} Be5 {[%emt 0:00:01]} 67. Qf8+ {[%emt 0:00:01]} Kd7 {[%emt 0:00:
02]} 68. Bf5+ {[%emt 0:00:02]} Kc6 {[%emt 0:00:01]} 69. Qc8+ {[%emt 0:00:02]}
Kb6 {[%emt 0:00:02]} 70. Qd8+ {[%emt 0:00:03]} Bc7 {[%emt 0:00:01]} 71. Qf6+ {
[%emt 0:00:01]} Kb7 {[%emt 0:00:06]} 72. Qxc3 {[%emt 0:00:01]} Rg2 {[%emt 0:00:
01]} 73. Qf3 {[%emt 0:00:01]} Rxg3 {[%emt 0:00:01]} 74. Qxd5+ {[%emt 0:00:01]}
Kb8 {[%emt 0:00:01]} 75. Be4 {[%emt 0:00:01]} Kc8 {[%emt 0:00:00]} 76. Qe6+ {
[%emt 0:00:02]} Kb8 {[%emt 0:00:01]} 77. Qe8+ {[%emt 0:00:01]} Ka7 {[%emt 0:00:
01]} 78. Qa8+ {[%emt 0:00:01]} 1-0

[Event "Grandmaster Tournament Blitz"]
[Site "Biel/Bienne, Switzerland"]
[Date "2019.07.27"]
[Round "12.1"]
[White "Shankland, Sam"]
[Black "Georgiadis, Nico"]
[Result "1-0"]
[ECO "A15"]
[WhiteElo "2660"]
[BlackElo "2464"]
[PlyCount "71"]
[EventDate "2019.??.??"]
[EventType "blitz"]
[TimeControl "3+2"]
[WhiteClock "0:01:30"]
[BlackClock "0:00:03"]

1. Nf3 {[%emt 0:00:00]} Nf6 {[%emt 0:00:00]} 2. c4 {[%emt 0:00:00]} g6 {
[%emt 0:00:00]} 3. b3 {[%emt 0:00:00]} Bg7 {[%emt 0:00:00]} 4. Bb2 {[%emt 0:00:
00]} d6 {[%emt 0:00:00]} 5. e3 {[%emt 0:00:00]} O-O {[%emt 0:00:00]} 6. Be2 {
[%emt 0:00:00]} e5 {[%emt 0:00:00]} 7. O-O {[%emt 0:00:00]} e4 {[%emt 0:00:00]}
8. Ne1 {[%emt 0:00:00]} c6 {[%emt 0:00:00]} 9. d3 {[%emt 0:00:00]} d5 {[%emt 0:
00:00]} 10. Nc3 {[%emt 0:00:00]} exd3 {[%emt 0:00:00]} 11. Nxd3 {[%emt 0:00:00]
} dxc4 {[%emt 0:00:00]} 12. bxc4 {[%emt 0:00:00]} Be6 {[%emt 0:00:00]} 13. Nc5
{[%emt 0:00:00]} Bc8 {[%emt 0:00:00]} 14. Qb3 {[%emt 0:00:00]} b6 {[%emt 0:00:
00]} 15. Rad1 {[%emt 0:00:00]} Qc7 {[%emt 0:00:00]} 16. N5e4 {[%emt 0:00:00]}
Nbd7 {[%emt 0:00:00]} 17. Bf3 {[%emt 0:00:00]} Ne5 {[%emt 0:00:00]} 18. Nxf6+ {
[%emt 0:00:00]} Bxf6 {[%emt 0:00:00]} 19. Ne4 {[%emt 0:00:00]} Bg7 {[%emt 0:00:
00]} 20. Be2 {[%emt 0:00:00]} Bf5 {[%emt 0:00:00]} 21. Nd6 {[%emt 0:00:00]} Be6
{[%emt 0:00:00]} 22. f4 {[%emt 0:00:00]} Ng4 {[%emt 0:00:00]} 23. Bxg7 {
[%emt 0:00:00]} Kxg7 {[%emt 0:00:00]} 24. Qc3+ {[%emt 0:00:00]} f6 {[%emt 0:00:
00]} 25. Rd2 {[%emt 0:00:00]} Rad8 {[%emt 0:00:05]} 26. Rfd1 {[%emt 0:00:00]}
Rd7 {[%emt 0:00:00]} 27. e4 {[%emt 0:00:00]} Rfd8 {[%emt 0:00:09]} 28. e5 {
[%emt 0:00:00]} fxe5 {[%emt 0:00:07]} 29. fxe5 {[%emt 0:00:00]} Nh6 {[%emt 0:
00:10]} 30. Rf1 {[%emt 0:00:00]} Kg8 {[%emt 0:00:19]} 31. Rf6 {[%emt 0:00:00]}
Re7 {[%emt 0:00:00]} 32. c5 {[%emt 0:00:00]} bxc5 {[%emt 0:00:04]} 33. Rxe6 {
[%emt 0:00:00]} Rxe6 {[%emt 0:00:03]} 34. Bc4 {[%emt 0:00:00]} Qe7 {[%emt 0:00:
14]} 35. Qh3 {[%emt 0:00:00]} Nf5 {[%emt 0:00:04]} 36. Nxf5 {[%emt 0:00:00]}
1-0

[Event "Grandmaster Tournament Blitz"]
[Site "Biel/Bienne, Switzerland"]
[Date "2019.07.27"]
[Round "12.2"]
[White "Cori, Jorge"]
[Black "Abdusattorov, Nodirbek"]
[Result "1-0"]
[ECO "A41"]
[WhiteElo "2558"]
[BlackElo "2550"]
[PlyCount "87"]
[EventDate "2019.??.??"]
[EventType "blitz"]
[TimeControl "3+2"]
[WhiteClock "0:00:37"]

1. d4 {[%emt 0:00:00]} d6 {[%emt 0:00:00]} 2. Nf3 {[%emt 0:00:00]} g6 {[%emt 0:
00:00]} 3. c4 {[%emt 0:00:00]} Bg7 4. Nc3 c5 {[%emt 0:00:00]} 5. dxc5 {[%emt 0:
00:00]} Bxc3+ {[%emt 0:00:00]} 6. bxc3 {[%emt 0:00:00]} dxc5 {[%emt 0:00:00]}
7. Qc2 {[%emt 0:00:00]} Nc6 {[%emt 0:00:00]} 8. h3 {[%emt 0:00:00]} Nf6 {
[%emt 0:00:00]} 9. Bh6 {[%emt 0:00:00]} Bf5 {[%emt 0:00:00]} 10. Qb2 {[%emt 0:
00:00]} Qb6 {[%emt 0:00:00]} 11. Qa3 {[%emt 0:00:00]} O-O-O {[%emt 0:00:00]}
12. g4 {[%emt 0:00:00]} Be4 {[%emt 0:00:00]} 13. Bg2 {[%emt 0:00:00]} Na5 {
[%emt 0:00:00]} 14. O-O {[%emt 0:00:00]} Nxc4 {[%emt 0:00:01]} 15. Qa4 Nd6 {
[%emt 0:00:00]} 16. c4 {[%emt 0:00:00]} Kb8 {[%emt 0:00:00]} 17. Ne5 {[%emt 0:
00:00]} Bxg2 {[%emt 0:00:00]} 18. Kxg2 {[%emt 0:00:00]} Qc7 {[%emt 0:00:00]}
19. Rab1 {[%emt 0:00:00]} Ka8 {[%emt 0:00:00]} 20. Rb3 {[%emt 0:00:00]} Nd7 {
[%emt 0:00:00]} 21. Ra3 {[%emt 0:00:00]} a6 {[%emt 0:00:00]} 22. Bf4 {[%emt 0:
00:00]} Nxe5 {[%emt 0:00:00]} 23. Bxe5 {[%emt 0:00:00]} f6 {[%emt 0:00:00]} 24.
Bg3 {[%emt 0:00:00]} Qd7 {[%emt 0:00:00]} 25. Qc2 {[%emt 0:00:00]} Qc6+ {
[%emt 0:00:00]} 26. f3 {[%emt 0:00:00]} e5 {[%emt 0:00:00]} 27. Rb1 {[%emt 0:
00:00]} Rd7 {[%emt 0:00:00]} 28. Ra5 {[%emt 0:00:00]} Ka7 {[%emt 0:00:16]} 29.
Bf2 {[%emt 0:00:17]} b6 {[%emt 0:00:07]} 30. Rxb6 {[%emt 0:00:03]} Kxb6 {
[%emt 0:00:05]} 31. Rxc5 {[%emt 0:00:01]} Qxc5 {[%emt 0:00:03]} 32. Qb3+ {
[%emt 0:00:00]} Kc6 {[%emt 0:00:09]} 33. Qa4+ {[%emt 0:00:02]} Qb5 {[%emt 0:00:
13]} 34. cxb5+ {[%emt 0:00:01]} axb5 {[%emt 0:00:01]} 35. Qa6+ {[%emt 0:00:03]}
Kd5 {[%emt 0:00:01]} 36. a4 {[%emt 0:00:20]} bxa4 {[%emt 0:00:04]} 37. Qxa4 {
[%emt 0:00:01]} Ke6 {[%emt 0:00:01]} 38. g5 {[%emt 0:00:01]} f5 {[%emt 0:00:11]
} 39. Qb3+ {[%emt 0:00:04]} Ke7 {[%emt 0:00:01]} 40. Qd5 {[%emt 0:00:01]} Nf7 {
[%emt 0:00:06]} 41. Bc5+ {[%emt 0:00:01]} Ke8 {[%emt 0:00:06]} 42. Qe6+ {
[%emt 0:00:01]} Kd8 {[%emt 0:00:03]} 43. Bb6+ {[%emt 0:00:01]} Kc8 {[%emt 0:00:
06]} 44. Qc6+ {[%emt 0:00:02]} 1-0

[Event "Grandmaster Tournament Blitz"]
[Site "Biel/Bienne, Switzerland"]
[Date "2019.07.27"]
[Round "12.3"]
[White "Bogner, Sebastian"]
[Black "Maghsoodloo, Parham"]
[Result "0-1"]
[ECO "A81"]
[WhiteElo "2584"]
[BlackElo "2719"]
[PlyCount "76"]
[EventDate "2019.??.??"]
[EventType "blitz"]
[TimeControl "3+2"]
[WhiteClock "0:00:04"]
[BlackClock "0:00:11"]

1. d4 {[%emt 0:00:00]} f5 {[%emt 0:00:00]} 2. g3 {[%emt 0:00:00]} Nf6 {[%emt 0:
00:00]} 3. Bg2 {[%emt 0:00:00]} g6 {[%emt 0:00:00]} 4. Nf3 {[%emt 0:00:00]} b6
{[%emt 0:00:00]} 5. Ne5 {[%emt 0:00:00]} c6 {[%emt 0:00:00]} 6. O-O {[%emt 0:
00:00]} Bb7 {[%emt 0:00:00]} 7. b3 {[%emt 0:00:00]} Bg7 {[%emt 0:00:00]} 8. Bb2
{[%emt 0:00:00]} O-O {[%emt 0:00:00]} 9. c4 {[%emt 0:00:00]} d6 {[%emt 0:00:00]
} 10. Nd3 {[%emt 0:00:00]} Qc8 {[%emt 0:00:00]} 11. Nd2 {[%emt 0:00:00]} c5 {
[%emt 0:00:00]} 12. d5 {[%emt 0:00:00]} e5 {[%emt 0:00:00]} 13. dxe6 {[%emt 0:
00:00]} Bxg2 {[%emt 0:00:00]} 14. Kxg2 {[%emt 0:00:00]} Qxe6 {[%emt 0:00:00]}
15. Nf4 {[%emt 0:00:00]} Qd7 {[%emt 0:00:00]} 16. e4 {[%emt 0:00:00]} Nc6 {
[%emt 0:00:00]} 17. exf5 {[%emt 0:00:00]} Qxf5 {[%emt 0:00:00]} 18. Qf3 {
[%emt 0:00:00]} Ne5 {[%emt 0:00:00]} 19. Bxe5 {[%emt 0:00:00]} dxe5 {[%emt 0:
00:00]} 20. Ne2 {[%emt 0:00:00]} e4 {[%emt 0:00:00]} 21. Qxf5 {[%emt 0:00:00]}
gxf5 {[%emt 0:00:00]} 22. Rad1 {[%emt 0:00:00]} Ng4 {[%emt 0:00:00]} 23. h3 {
[%emt 0:00:00]} Nf6 {[%emt 0:00:00]} 24. Nf4 {[%emt 0:00:00]} Bh6 {[%emt 0:00:
00]} 25. Ne6 {[%emt 0:00:03]} Rf7 {[%emt 0:00:00]} 26. Nb1 {[%emt 0:00:05]} Re8
{[%emt 0:00:00]} 27. Nd8 {[%emt 0:00:12]} Rff8 {[%emt 0:00:11]} 28. Nb7 {
[%emt 0:00:03]} f4 {[%emt 0:00:02]} 29. Nd6 {[%emt 0:00:10]} Re5 {[%emt 0:00:
02]} 30. Nc3 {[%emt 0:00:06]} f3+ {[%emt 0:00:25]} 31. Kh2 {[%emt 0:00:01]} e3
{[%emt 0:00:01]} 32. fxe3 {[%emt 0:00:03]} Rxe3 {[%emt 0:00:01]} 33. Nf5 {
[%emt 0:00:06]} Rxc3 {[%emt 0:00:01]} 34. Nxh6+ {[%emt 0:00:01]} Kh8 {[%emt 0:
00:01]} 35. Rd2 {[%emt 0:00:14]} Ne4 {[%emt 0:00:03]} 36. Rb2 {[%emt 0:00:03]}
f2 {[%emt 0:00:10]} 37. g4 {[%emt 0:00:07]} Rff3 {[%emt 0:00:06]} 38. Nf5 {
[%emt 0:00:06]} Rxh3+ {[%emt 0:00:10]} 0-1

[Event "Grandmaster Tournament Blitz"]
[Site "Biel/Bienne, Switzerland"]
[Date "2019.07.27"]
[Round "12.4"]
[White "Leko, Peter"]
[Black "Vidit, Santosh Gujrathi"]
[Result "0-1"]
[ECO "C54"]
[WhiteElo "2743"]
[BlackElo "2694"]
[PlyCount "74"]
[EventDate "2019.??.??"]
[EventType "blitz"]
[TimeControl "3+2"]
[WhiteClock "0:00:15"]
[BlackClock "0:00:23"]

1. e4 {[%emt 0:00:00]} e5 {[%emt 0:00:00]} 2. Nf3 {[%emt 0:00:00]} Nc6 {
[%emt 0:00:00]} 3. Bc4 {[%emt 0:00:00]} Nf6 {[%emt 0:00:00]} 4. d3 {[%emt 0:00:
00]} Bc5 {[%emt 0:00:00]} 5. O-O {[%emt 0:00:00]} O-O {[%emt 0:00:00]} 6. c3 {
[%emt 0:00:00]} d6 {[%emt 0:00:00]} 7. Re1 {[%emt 0:00:00]} a5 {[%emt 0:00:00]}
8. h3 {[%emt 0:00:00]} h6 {[%emt 0:00:00]} 9. Nbd2 {[%emt 0:00:00]} Be6 {
[%emt 0:00:00]} 10. Bb5 {[%emt 0:00:00]} Qb8 {[%emt 0:00:00]} 11. Nf1 {[%emt 0:
00:00]} Qa7 {[%emt 0:00:00]} 12. Be3 {[%emt 0:00:00]} Bxe3 {[%emt 0:00:00]} 13.
Nxe3 {[%emt 0:00:00]} Ne7 {[%emt 0:00:00]} 14. a4 {[%emt 0:00:00]} Ng6 {
[%emt 0:00:00]} 15. Qc2 {[%emt 0:00:00]} c6 {[%emt 0:00:00]} 16. Bc4 {[%emt 0:
00:00]} d5 {[%emt 0:00:00]} 17. exd5 {[%emt 0:00:00]} cxd5 {[%emt 0:00:00]} 18.
Bb5 {[%emt 0:00:00]} Rad8 {[%emt 0:00:00]} 19. Nf1 {[%emt 0:00:00]} Qb8 {
[%emt 0:00:00]} 20. Ng3 {[%emt 0:00:00]} Bd7 {[%emt 0:00:00]} 21. Re3 {[%emt 0:
00:00]} Rfe8 {[%emt 0:00:00]} 22. Rae1 {[%emt 0:00:00]} Qc7 {[%emt 0:00:00]}
23. Qb3 {[%emt 0:00:00]} Bc6 {[%emt 0:00:00]} 24. d4 {[%emt 0:00:00]} e4 {
[%emt 0:00:00]} 25. Nd2 {[%emt 0:00:00]} Nf4 {[%emt 0:00:00]} 26. Rc1 {[%emt 0:
00:00]} Re6 {[%emt 0:00:00]} 27. Bf1 {[%emt 0:00:00]} Qd7 {[%emt 0:00:00]} 28.
Ra1 {[%emt 0:00:00]} Nh7 {[%emt 0:00:00]} 29. Ne2 {[%emt 0:00:00]} Nxe2+ {
[%emt 0:00:00]} 30. Rxe2 {[%emt 0:00:00]} f5 {[%emt 0:00:00]} 31. Ree1 {
[%emt 0:00:00]} Kh8 {[%emt 0:00:04]} 32. Qb6 {[%emt 0:00:18]} Ra8 {[%emt 0:00:
09]} 33. Bb5 {[%emt 0:00:30]} f4 {[%emt 0:00:05]} 34. c4 {[%emt 0:00:06]} Rg6 {
[%emt 0:00:07]} 35. Kh2 {[%emt 0:00:04]} f3 {[%emt 0:00:18]} 36. g4 {[%emt 0:
00:05]} Rxg4 {[%emt 0:00:10]} 37. Rg1 {[%emt 0:00:04]} Rh4 {[%emt 0:00:06]} 0-1

[Event "Grandmaster Tournament Blitz"]
[Site "Biel/Bienne, Switzerland"]
[Date "2019.07.27"]
[Round "13.2"]
[White "Vidit, Santosh Gujrathi"]
[Black "Bogner, Sebastian"]
[Result "1-0"]
[ECO "E63"]
[WhiteElo "2694"]
[BlackElo "2584"]
[PlyCount "79"]
[EventDate "2019.??.??"]
[EventType "blitz"]
[TimeControl "3+2"]
[WhiteClock "0:00:29"]
[BlackClock "0:00:06"]

1. d4 {[%emt 0:00:00]} Nf6 {[%emt 0:00:00]} 2. c4 {[%emt 0:00:00]} g6 {[%emt 0:
00:00]} 3. g3 {[%emt 0:00:00]} Bg7 {[%emt 0:00:00]} 4. Bg2 {[%emt 0:00:00]} O-O
{[%emt 0:00:00]} 5. Nc3 {[%emt 0:00:00]} d6 {[%emt 0:00:00]} 6. Nf3 {[%emt 0:
00:00]} Nc6 {[%emt 0:00:00]} 7. O-O {[%emt 0:00:00]} a6 {[%emt 0:00:00]} 8. b3
{[%emt 0:00:00]} Rb8 {[%emt 0:00:00]} 9. Nd5 {[%emt 0:00:00]} Nh5 {[%emt 0:00:
00]} 10. Bb2 {[%emt 0:00:00]} e6 {[%emt 0:00:00]} 11. Nc3 {[%emt 0:00:00]} f5 {
[%emt 0:00:00]} 12. d5 {[%emt 0:00:00]} Ne5 {[%emt 0:00:00]} 13. Nd4 {[%emt 0:
00:00]} exd5 {[%emt 0:00:00]} 14. cxd5 {[%emt 0:00:00]} f4 {[%emt 0:00:00]} 15.
Qd2 {[%emt 0:00:00]} Qe7 {[%emt 0:00:00]} 16. Rad1 {[%emt 0:00:00]} Kh8 {
[%emt 0:00:00]} 17. Ne4 {[%emt 0:00:00]} Bd7 {[%emt 0:00:00]} 18. Rc1 {[%emt 0:
00:00]} Rbc8 {[%emt 0:00:00]} 19. Nf3 {[%emt 0:00:00]} Bf5 {[%emt 0:00:00]} 20.
Nxe5 {[%emt 0:00:00]} Bxe5 {[%emt 0:00:00]} 21. Bxe5+ {[%emt 0:00:00]} Qxe5 {
[%emt 0:00:00]} 22. Ng5 {[%emt 0:00:00]} Bg4 {[%emt 0:00:00]} 23. Nf3 {[%emt 0:
00:00]} Qg7 {[%emt 0:00:00]} 24. Rc4 {[%emt 0:00:00]} Rce8 {[%emt 0:00:07]} 25.
gxf4 {[%emt 0:00:00]} b5 {[%emt 0:00:05]} 26. Rd4 {[%emt 0:00:00]} Qf6 {
[%emt 0:00:36]} 27. e3 {[%emt 0:00:00]} Ng7 {[%emt 0:00:04]} 28. Ng5 {[%emt 0:
00:01]} h6 {[%emt 0:00:03]} 29. Ne4 {[%emt 0:00:02]} Qh4 {[%emt 0:00:02]} 30.
Ng3 {[%emt 0:00:04]} Nf5 {[%emt 0:00:02]} 31. Re4 {[%emt 0:00:04]} Bh3 {
[%emt 0:00:04]} 32. Rxe8 {[%emt 0:00:06]} Rxe8 33. Rc1 {[%emt 0:00:12]} Bxg2 {
[%emt 0:00:01]} 34. Kxg2 {[%emt 0:00:01]} Qg4 {[%emt 0:00:01]} 35. Rxc7 {
[%emt 0:00:20]} Nh4+ {[%emt 0:00:01]} 36. Kf1 {[%emt 0:00:01]} Qh3+ {[%emt 0:
00:02]} 37. Ke2 {[%emt 0:00:00]} Qg4+ {[%emt 0:00:01]} 38. Kd3 {[%emt 0:00:01]}
Kg8 {[%emt 0:00:11]} 39. Kc2 {[%emt 0:00:06]} Nf3 {[%emt 0:00:00]} 40. Qc3 {
[%emt 0:00:01]} 1-0